Cogmind - Beta 14 @@@ ROGUE MODE // 2024.11.07 @ 23:24:44 Player: MrMistersen Result: Destroyed by 5A-GRP(R) with Subdweller Shrapnel Launcher Performance ------------- Evolutions (0) 0 Regions Visited (2) 400 Robots Destroyed (31) 155 Value Destroyed (749) 749 Prototype IDs (4) 80 Alien Tech Used (0) 0 Bonus (0) 0 TOTAL SCORE: 1384 Bonus ------- None Cogmind --------- Core Integrity 0/250 Matter 400/400 Energy 250/250 System Corruption 0% Temperature Cool (0) Movement Walking (400) Ox4 Location -10/Subcaves Parts ------- > --- POWER (1) -------- Ion Engine > --- PROPULSION (2) --- Aluminum Leg Aluminum Leg > --- UTILITY (2) ------ Huge Storage Unit Medium Matter Pod > --- WEAPON (2) ------- (None) > --- INVENTORY (25) --- Ion Engine Aluminum Leg Aluminum Leg Aluminum Leg Aluminum Leg High-capacity Storage Unit Medium Matter Pod (100) Sensor Array Signal Interpreter Medium Armor Plating Medium Armor Plating Medium Armor Plating Medium Armor Plating Authchip [R/Combat] Tractor Beam EM Pulse Gun Medium Laser Shotgun Grenade Launcher Datajack Welding Torch Peak State ------------ > --- POWER ------------ Light Nuclear Core > --- PROPULSION ------- Aluminum Leg Aluminum Leg > --- UTILITY ---------- Huge Storage Unit Medium Matter Pod > --- WEAPON ----------- Shotgun Shotgun > --- INVENTORY -------- Ion Engine Ion Engine Aluminum Leg Aluminum Leg Aluminum Leg Aluminum Leg High-capacity Storage Unit Medium Matter Pod Sensor Array Signal Interpreter Medium Armor Plating Medium Armor Plating Medium Armor Plating Medium Armor Plating EM Pulse Gun Medium Laser Small Laser Shotgun Shotgun Grenade Launcher Datajack Welding Torch Welding Torch [Rating: 13] Favorites ----------- Power Ion Engine Engine Ion Engine Power Core Light Nuclear Core Propulsion Aluminum Leg Leg Aluminum Leg Utility Medium Matter Pod Storage Medium Matter Pod Protection Weapon Shielding Weapon Shotgun Energy Gun Medium Laser Ballistic Gun Shotgun Launcher Grenade Launcher Special Weapon Welding Torch Build | -11 -10 -10 ------- Run | Yrd Mat Sub Slots Evolved . | . . . Power . | . . . Propulsion . | . . . Utility . | . . . Weapon . | . . . Parts Attached 28 | 4 24 . Power 4 | . 4 . Engine 3 | . 3 . Core 1 | . 1 . Reactor . | . . . Propulsion 8 | 2 6 . Treads . | . . . Leg 8 | 2 6 . Wheel . | . . . Hover . | . . . Flight . | . . . Utility 5 | . 5 . Device . | . . . Storage 4 | . 4 . Processor . | . . . Hackware . | . . . Protection 1 | . 1 . Artifact . | . . . Weapon 11 | 2 9 . Energy Gun 4 | 2 2 . Energy Cannon . | . . . Ballistic Gun 5 | . 5 . Ballistic Cannon . | . . . Launcher 1 | . 1 . Special Weapon 1 | . 1 . Impact Weapon . | . . . Slashing Weapon . | . . . Piercing Weapon . | . . . Special Melee Weapon . | . . . Unidentified Prototypes . | . . . Parts Lost 5 | . 3 2 Power 1 | . 1 . Propulsion . | . . . Utility . | . . . Weapon 4 | . 2 2 Highest Loss Streak 2 | . 2 2 To Critical Strikes . | . . . Average Slot Usage (%) 97 | . 97 99 Engine 9 | . 9 14 Core 2 | . 2 . Leg 27 | . 27 28 Storage 25 | . 25 28 Protection 2 | . 2 . Energy Gun 3 | . 3 . Ballistic Gun 20 | . 20 13 Special Weapon 3 | . 3 14 Peak Build Rating 13 | 4 13 10 Average Rating 10 | 3 10 9 On Entrance 4 | . 4 10 Naked Turns . | . . . Heaviest Build 93 | 3 93 91 Greatest Support 20 | 20 20 20 Greatest Overweight (x) 30 | . 30 4 Average Overweight (x) 3 | . 3 4 Largest Inventory Capacity 25 | 5 25 25 Average Capacity 22 | 5 22 25 Most Carried 23 | 4 23 21 Average Carried 18 | 2 18 21 Final Capacity 25 | 5 25 25 Final Carried 21 | 4 21 21 Class Distribution -------------------- 100% | Mutant Dominant Class ---------------- Mutant | -10/Materials Mutant | -10/Subcaves Resources | -11 -10 -10 ----------- Run | Yrd Mat Sub Matter Collected 1093 | 176 917 . Remotely . | . . . Salvage Created 915 | . 915 . Parts 59 | . 59 . Haulers Intercepted . | . . . Recyclers Shooed . | . . . Parts Field Recycled . | . . . Retrieved Matter . | . . . Parts Self-Destructed 2 | . . 2 Prevented . | . . . Kills | -11 -10 -10 ------- Run | Yrd Mat Sub Combat Hostiles Destroyed 26 | . 26 . Guns 26 | . 26 . Classes Destroyed 5 | . 5 . Worker 1 | . 1 . Recycler 1 | . 1 . Watcher 3 | . 3 . Swarmer 9 | . 9 . Grunt 17 | . 17 . Best Kill Streak 3 | . 3 . Combat Bots Only 3 | . 3 . Max Kills in Single Turn 1 | . 1 . Gunslinging . | . . . Exploded . | . . . Melee . | . . . Uniques/NPCs Destroyed . | . . . Combat | -11 -10 -10 -------- Run | Yrd Mat Sub Hostile Shots Fired 141 | . 134 7 Missed 36 | . 34 2 Damage Taken 1241 | . 1017 224 Core 268 | . 179 89 Absorbed by Shields . | . . . Redirected to Shielding 35 | . 35 . Regen/Repaired (Parts) 54 | . 54 . Core Remaining (%) 100 | 100 . . Volleys Fired 71 | . 71 . Largest 2 | . 2 . Hottest 90 | . 90 . Shots Fired 132 | . 132 . Gun 125 | . 125 . Cannon . | . . . Launcher 1 | . 1 . Special 6 | . 6 . Kinetic 105 | . 105 . Thermal 26 | . 26 . Explosive 1 | . 1 . Electromagnetic . | . . . Robot Hit Streak 7 | . 7 . Robot Miss Streak 7 | . 7 . Penetration Max . | . . . Secondary Targets 1 | . 1 . Max Gunslinging Chain 1 | . 1 . Shots Hit Robots 84 | . 84 . Core Hits 52 | . 52 . Critical Kills 1 | . 1 . Critical Parts Destroyed 3 | . 3 . Critical Strikes 4 | . 4 . Destroy 4 | . 4 . Melee Attacks . | . . . Impact . | . . . Slashing . | . . . Piercing . | . . . Sneak Attacks . | . . . Combat Hostiles . | . . . Follow-up Attacks . | . . . Damage Inflicted 1143 | . 1143 . Guns 1095 | . 1095 . Cannons . | . . . Explosions 42 | . 42 . Melee . | . . . Ramming 4 | . 4 . Kinetic 936 | . 936 . Thermal 161 | . 161 . Explosive 42 | . 42 . Electromagnetic . | . . . Impact . | . . . Slashing . | . . . Piercing . | . . . Highest Corruption . | . . . Average Corruption . | . . . Corruption Purged . | . . . Corruption Blocked . | . . . Overload Shots . | . . . Overflow Damage . | . . . Projectiles . | . . . Explosions . | . . . Melee . | . . . Knockbacks . | . . . Impact . | . . . Kinetic . | . . . Secondary . | . . . Self-Inflicted Damage . | . . . Shots . | . . . Rammed . | . . . Targets Rammed 2 | . 2 . Kicked 2 | . 2 . Crushed . | . . . Highest Temperature 213 | . 213 . Average Temperature 64 | . 64 . Received Heat Transfer 414 | . 402 12 Effects 1 | . 1 . Interference 1 | . 1 . Siege Activations . | . . . Robots Corrupted . | . . . Combat Hostiles . | . . . Parts Fried . | . . . Impact Corruptions . | . . . Robots Melted . | . . . Combat Hostiles . | . . . Parts Melted 1 | . 1 . Heat Transferred 458 | . 458 . Parts Sabotaged . | . . . Parts Stolen . | . . . Parts Stripped . | . . . Power Chain Reactions . | . . . Alert | -11 -10 -10 ------- Run | Yrd Mat Sub Peak Influence 158 | . 158 . Initial . | . . . Average 63 | . 64 . Maximum Alert Level . | . . . Low Security (%) 100 | 100 100 . Level 1 . | . . . Level 2 . | . . . Level 3 . | . . . Level 4 . | . . . Level 5 . | . . . High Security . | . . . Max Security . | . . . Squads Dispatched 7 | . 7 . Investigation 4 | . 4 . Extermination . | . . . Reinforcement 3 | . 3 . Assault . | . . . Garrison . | . . . Intercept . | . . . Searches Triggered . | . . . Construction Impeded . | . . . Haulers Reinforced . | . . . Active Scanning Responses . | . . . Cargo Convoy Interrupts . | . . . Stealth | -11 -10 -10 --------- Run | Yrd Mat Sub Distress Signals . | . . . Communications Jammed . | . . . Distress Signals . | . . . Times Spotted 46 | . 44 2 Peak Tracking Total 3 | . 3 2 Tactical Retreats 1 | . 1 . Traps | -11 -10 -10 ------- Run | Yrd Mat Sub Traps Triggered . | . . . Indirectly . | . . . Trap Hack Attempts . | . . . Triggered . | . . . Disarmed . | . . . Reprogrammed . | . . . Reused . | . . . Traps Extracted . | . . . Installed . | . . . Triggered . | . . . Machines | -11 -10 -10 ---------- Run | Yrd Mat Sub Machines Disabled . | . . . Max in Single Turn . | . . . Machines Repaired . | . . . Machines Dismantled . | . . . Machines Sabotaged . | . . . Overloaded Fab Kills . | . . . Hacking | -11 -10 -10 --------- Run | Yrd Mat Sub Machines Accessed 7 | . 7 . Terminals 4 | . 4 . Fabricators . | . . . Repair Stations 1 | . 1 . Recycling Units 2 | . 2 . Scanalyzers . | . . . Garrison Access . | . . . Total Hacks 23 | . 23 . Successful 17 | . 17 . Failed 6 | . 6 . Catastrophic . | . . . Database Lockouts . | . . . Manual . | . . . Terminals 10 | . 10 . Fabricators . | . . . Repair Stations 6 | . 6 . Recycling Units 7 | . 7 . Scanalyzers . | . . . Garrison Access . | . . . Terminal Hacks 6 | . 6 . Record 1 | . 1 . Prototype ID Bank 2 | . 2 . Alert Level 1 | . 1 . Locate Traps 1 | . 1 . Investigation Status 1 | . 1 . Fabricator Hacks . | . . . Repair Station Hacks 5 | . 5 . Scan Component 3 | . 3 . Repair 2 | . 2 . Recycling Unit Hacks 6 | . 6 . Recycle Component 1 | . 1 . Process 1 | . 1 . Report Inventory 2 | . 2 . Retrieve Matter 1 | . 1 . Retrieve Components 1 | . 1 . Scanalyzer . | . . . Garrison Access Hacks . | . . . Unauthorized Hacks . | . . . Terminals . | . . . Fabricators . | . . . Repair Stations . | . . . Recycling Units . | . . . Scanalyzers . | . . . Garrison Access . | . . . Data Cores Recovered . | . . . Used . | . . . Hacking Detections 6 | . 6 . Full Trace Events 4 | . 4 . Feedback Events . | . . . Feedback Blocked . | . . . Robot Schematics Acquired . | . . . Robots Built . | . . . Authchips . | . . . Time . | . . . Total Robot Build Rating . | . . . Part Schematics Acquired . | . . . Parts Built . | . . . Authchips . | . . . Time . | . . . Total Part Build Rating . | . . . Parts Repaired 2 | . 2 . Time 52 | . 52 . Parts Recycled 1 | . 1 . Recycled Matter 415 | . 415 . Retrieved Matter . | . . . Retrieved Components 2 | . 2 . Parts Scanalyzed . | . . . Part Schematics Acquired . | . . . Parts Damaged . | . . . Bothacking | -11 -10 -10 ------------ Run | Yrd Mat Sub Used RIF Installer . | . . . Robots Hacked . | . . . Non-combat . | . . . Combat . | . . . Robot Hacks Applied . | . . . Relay Couplers Released . | . . . Fabnet Peak Effective % . | . . . Robots Rewired . | . . . Allies Hacked . | . . . Hacks Repelled . | . . . Allies | -11 -10 -10 -------- Run | Yrd Mat Sub Total Allies . | . . . Largest Group . | . . . Highest-Rated Group . | . . . Highest-Rated Ally . | . . . Total Orders . | . . . Ally Attacks . | . . . Total Damage . | . . . Kills . | . . . Allies Corrupted . | . . . Allies Melted . | . . . Intel | -11 -10 -10 ------- Run | Yrd Mat Sub Robot Analysis Total . | . . . Derelict Logs Recovered . | . . . Drone Launches . | . . . Drone Recoveries . | . . . Exploration | -11 -10 -10 ------------- Run | Yrd Mat Sub Turns Passed 4301 | 57 4027 217 Spaces Moved 1139 | 42 1042 55 Core 10 | 7 3 . Treads . | . . . Legs 1129 | 35 1039 55 Wheels . | . . . Hover . | . . . Flight . | . . . Fastest Speed 50 | 50 120 400 Average Speed 331 | 108 337 400 Slowest Speed 1550 | 120 1550 400 Overloaded Moves . | . . . Propulsion Burnouts . | . . . Robots Hopped . | . . . Cave-ins Triggered . | . . . Exploration Rate (%) 36 | 3 99 6 Regions Visited 2 Branch Regions 1 Pre-discovered Areas . | . . . Known Exits Taken . | . . . Unknown Exits Taken 2 | 1 1 . Scrap Searched . | . . . Spaces Dug . | . . . Terrain Destroyed 9 | . 9 . Melee . | . . . Projectile . | . . . AOE 9 | . 9 . Terrain Rammed . | . . . Walls Destroyed . | . . . Machines Disabled . | . . . Actions | -11 -10 -10 --------- Run | Yrd Mat Sub Total 1528 | 53 1420 55 Wait 238 | . 238 . Move 1137 | 41 1041 55 Hop . | . . . Pick Up 39 | 8 31 . Fast Attach 3 | . 3 . Attach 14 | 4 10 . Detach 2 | . 2 . Swap 11 | . 11 . Drop 11 | . 11 . Fire 71 | . 71 . Melee . | . . . Ram . | . . . Kick 2 | . 2 . Crush . | . . . Escape Stasis . | . . . Rewire . | . . . Trap . | . . . Miscellaneous . | . . . Route ------- -11/Scrapyard -10/Materials (discovered 5 exits: [*Mat x3] / [*Min] / [*Sub]) -10/Subcaves History --------- Turn | Location | Event 4 | -11/Scrapyard | Discovered new exit (range 16) 58 | -11/Scrapyard | Entered Materials 305 | -10/Materials | Build established: Mutant 632 | -10/Materials | Repaired Aluminum Leg 658 | -10/Materials | Repaired Aluminum Leg 805 | -10/Materials | Discovered new exit (range 9) 1116 | -10/Materials | Discovered new exit (range 13) 1478 | -10/Materials | Discovered new exit (range 9) 2086 | -10/Materials | Discovered new exit (range 12) 2203 | -10/Materials | Core integrity fell below 50% 3388 | -10/Materials | Discovered new exit (range 16) 4085 | -10/Materials | Entered Subcaves 4298 | -10/Subcaves | Core integrity fell below 20% 4302 | -10/Subcaves | Destroyed by 5A-GRP(R) with Subdweller Shrapnel Launcher Last Messages --------------- Initially the mining tunnels only rarely experienced hostile [Derelict] activity, not enough to justify allocating significant resources to defense. This has recently changed with the [Infestation], for which the current response is to dispatch garrisoned Demolishers until a more permanent solution can be put in place. >>Prototypes Downloading prototype IDs... Imp. Assault Rifle Imp. Medium Laser 03533_ Acquired 30 matter. LOCATION=UNKNOWN AMBIENT_HEAT=-10 GOAL=ESCAPE 04173_ 75-NX7(u) builds Twisted Machinery. 04255_ 75-NX7(u) tweaks Twisted Machinery. 04298_ Shotgun destroyed. 04300_ Welding Torch destroyed. Map ----- +----------------------------------------------------+ | ?????????????????????????????????????????????????? | | ?????????????????????????????????????????????????? | | ????????????????????????????????????????????? ???? | | ????????????????????????????????????????????? ???? | | ?????????????????????????????????????#?????? #???? | | ?????????????????????????????????????%####? #???? | | ????????????????????????????????????? ## ???? | | ????????????????????????????????????? ?????? | | ????????????????????##??????????????? ??????? | | ????????????????????# #??????????????# #???????? | | ????????????????????# #????###?????### #???????? | | ????????????????????# ### #?##### "#???????? | | ????????????##??????# ### # # "##??????? | | ???????????## #?????# ##?## """#??????? | | ???????????# ????# ### "#????????? | | ???????????# ???# #### ""#???????? | | ????????????# "??## ##??#"" #???????? | | ?????????????# "### ## ####???#""##???????? | | ?????????????# """"# ## #??????#"" ????????? | | ??????????????# """ #### ##??????#" ##???????? | | ??????????????## " #??####????#??"" ????????? | | ????? ???##### ########### ###?? ????????? | | ?????? ## " ###; ;; ;;;;;#?? ????????? | | ????? " """##?# ; ## ?????????? | | ????? " """#### R"" ????????? | | ????? " " ## @ R " #????????? | | ????? ### ; ;" ????????? | | ???? ### ##??# ;;;# ?????????? | | ????????## #????## ## # ###????????????? | | ?????????##??????## ## ?#??????????????? | | ??????????????????#### ??????????????? | | ????????????????????# ????????????? | | ????????????????????## ??????????? | | ?????????????????????## #### # # ?????????? | | ??????????????????????### ##????#?#??????????? | | ????????????????????????#######??????????????????? | | ?????????????????????????????????????????????????? | | ?????????????????????????????????????????????????? | | ?????????????????????????????????????????????????? | | ?????????????????????????????????????????????????? | | ?????????????????????????????????????????????????? | | ?????????????????????????????????????????????????? | | ?????????????????????????????????????????????????? | | ?????????????????????????????????????????????????? | | ?????????????????????????????????????????????????? | | ?????????????????????????????????????????????????? | | ?????????????????????????????????????????????????? | | ?????????????????????????????????????????????????? | | ?????????????????????????????????????????????????? | | ?????????????????????????????????????????????????? | +----------------------------------------------------+ Best States ------------- Heat Dissipation 25 Energy Generation 14 Energy Capacity 250 Matter Stores 400 Matter Capacity 400 Sight Range 16 Terrain Scan Density 10 Weapon Shielding 33 Evasion (%) 55 Authchip Count 1 Item Schematics ----------------- None Robot Schematics ------------------ None Fabricated ------------ Nothing Alien Tech Used ----------------- None Achievements -------------- None Challenges ------------ None Game ------ Seed DerelictMicroNeutralizer Manual? 0 Play Time 00:27:52 Cumulative 6.3 hours Start 2024.11.07 @ 22:51:07 End 2024.11.07 @ 23:24:44 Sessions 1 Manual Loads 0 Difficulty Rogue Special Mode None Game No. 9 Rogue 9 Adventurer 0 Explorer 0 Win Type - Total 0 Types 0/0/0/0/0/0/0/0/0 Lore% 4 Gallery% 10 Achievement% 9 Wizard Run 0 Options --------- Layout 1 ASCII 0 Keyboard 0 Movement Mouse Keybinds 0 Fullscreen 2 Font 24/Proggy Map View 50x35 Zoom Use 0% Tactical HUD 1 Map Filters NONE Filters NONE Steam 1 RUN: d659e2b6-bd40-4d1c-9a1e-a00d0737b077